fUSD/lending_fUSD_20250331
["ID","MTS","AMOUNT","RATE_DAILY","PERIOD"]
[356923624,1743435039781,-23960.32587968,0.0002,2]
[356923625,1743435039791,-299.92176583,0.0002,2]
[356923626,1743435039801,-10000.0,0.0002,2]
[356923627,1743435039811,-1476.46083098,0.0002,2]
[356923628,1743435039823,-4285.02811415,0.0002,2]
[356923629,1743435039832,-32089.43880395,0.0002,2]
[356923630,1743435039843,-144996.39084971,0.0002,4]
[356923631,1743435039853,-151.26,0.0002,2]
[356923632,1743435039864,-151.26,0.0002,2]
[356923633,1743435039874,-5000.00911358,0.00024,5]
[356923634,1743435039885,-3632.23,0.00024,2]
[356923635,1743435039895,-3715.21,0.00024,2]
[356923636,1743435039906,-30566.07,0.00024,2]
[356923637,1743435039917,-5574.45279034,0.00024211,2]
[356923638,1743435039927,-500.0,0.00024978,2]
[356923639,1743435039936,-5.45,0.00026849,2]
[356923640,1743435039944,-5574.45279034,0.00028867,2]
[356923641,1743435039954,-1000.0,0.00030457,5]
[356923642,1743435039964,-16348.1183348,0.0003349,2]
[356923643,1743435039974,-58709.2933903,0.0003349,2]
[356923644,1743435039983,-151.26,0.0003349,2]
[356923645,1743435039993,-1163.36352505,0.000335,2]
[356923646,1743435040003,-15273.18,0.000335,30]
[356923647,1743435040015,-5574.45279034,0.00033522,2]
[356923648,1743435040025,-9319.53,0.00033782,20]
[356923649,1743435040034,-16191.43144696,0.00033784,2]
[356923650,1743435040044,-2227.71287659,0.00033784,7]
[356923651,1743435040054,-5574.45279034,0.00038178,2]
[356923652,1743435040064,-229.54778602,0.0004,14]
[356923653,1743435040075,-4324.58697614,0.0004,15]
[356923654,1743435040085,-1500.0,0.00040476,5]
[356923655,1743435040094,-155.45,0.00042583,2]
[356923657,1743435040104,-5574.45279034,0.00042833,15]
[356923659,1743435040114,-500.0,0.00043836,120]
[356923660,1743435040124,-500.0,0.00043836,120]
[356923661,1743435040134,-500.0,0.00043836,120]
[356923662,1743435040143,-250.0,0.00043836,120]
[356923663,1743435040153,-500.0,0.00043836,120]
[356923664,1743435040162,-500.0,0.00043836,120]
[356923665,1743435040172,-500.0,0.00043836,120]
[356923666,1743435040181,-500.0,0.00043836,120]
[356923667,1743435040192,-500.0,0.00043836,120]
[356923668,1743435040202,-500.0,0.00043836,120]
[356923669,1743435040212,-500.0,0.00043836,120]
[356923670,1743435040222,-500.0,0.00043836,120]
[356923671,1743435040231,-500.0,0.00043836,120]
[356923672,1743435040241,-500.0,0.00043836,120]
[356923673,1743435040250,-500.0,0.00043836,120]
[356923674,1743435040261,-500.0,0.00043836,120]
[356923675,1743435040270,-500.0,0.00043836,120]
[356923676,1743435040287,-500.0,0.00043836,120]
[356923677,1743435040301,-455.76382297,0.00043836,120]
[356923678,1743435040311,-500.0,0.00043836,120]
[356923679,1743435040322,-500.0,0.00043836,120]
[356923680,1743435040332,-500.0,0.00043836,120]
[356923681,1743435040342,-500.0,0.00043836,120]
[356923682,1743435040352,-500.0,0.00043836,120]
[356923683,1743435040362,-500.0,0.00043836,120]
[356923684,1743435040372,-500.0,0.00043836,120]
[356923685,1743435040382,-500.0,0.00043836,120]
[356923686,1743435040392,-500.0,0.00043836,120]
[356923687,1743435040403,-500.0,0.00043836,120]
[356923688,1743435040415,-500.0,0.00043836,120]
[356923689,1743435040427,-500.0,0.00043836,120]
[356923690,1743435040437,-500.0,0.00043836,120]
[356923691,1743435040447,-500.0,0.00043836,120]
[356923692,1743435040457,-500.0,0.00043836,120]
[356923693,1743435040467,-500.0,0.00043836,120]
[356923694,1743435040477,-150.0,0.00043836,120]
[356923695,1743435040487,-150.10950105,0.00044,120]
[356923696,1743435040497,-151.0,0.00044292,2]
[356923697,1743435040512,-152.0,0.00044292,2]
[356923698,1743435040522,-1112.80451923,0.00045,120]
[356923699,1743435040533,-1909.67948273,0.00045,60]
[356923700,1743435040544,-502.27535896,0.0004525,10]
[356923701,1743435040554,-520.09,0.00045399,2]
[356923702,1743435040565,-785.0783,0.00046474,2]
[356923703,1743435040575,-1000.0,0.00046538,2]
[356923704,1743435040585,-23900.0,0.00046538,2]
[356923705,1743435040595,-500.0,0.00046575,120]
[356923706,1743435040606,-524.1,0.00046575,120]
[356923707,1743435040617,-500.0,0.00046575,120]
[356923708,1743435040628,-500.0,0.00046575,120]
[356923709,1743435040639,-500.0,0.00046575,120]
[356923710,1743435040649,-500.0,0.00046575,120]
[356923711,1743435040660,-1197.78,0.00046575,120]
[356923712,1743435040670,-500.0,0.00046575,120]
[356923713,1743435040680,-500.0,0.00046575,120]
[356923714,1743435040690,-500.0,0.00046575,120]
[356923715,1743435040700,-500.0,0.00046575,120]
[356923716,1743435040710,-624.71,0.00046575,120]
[356923717,1743435040719,-500.0,0.00046575,120]
[356923718,1743435040730,-500.0,0.00046575,120]
[356923719,1743435040739,-500.0,0.00046575,120]
[356923720,1743435040749,-500.0,0.00046575,120]
[356923721,1743435040760,-1078.91,0.00046575,120]
[356923722,1743435040770,-500.0,0.00046575,120]
[356923723,1743435040780,-1135.55,0.00046575,120]
[356923724,1743435040790,-500.0,0.00046575,120]
[356923725,1743435040800,-571.78,0.00046575,120]
[356923726,1743435040809,-1494.51,0.00046575,120]
[356923727,1743435040820,-500.0,0.00046575,120]
[356923728,1743435040830,-500.0,0.00046575,120]
[356923729,1743435040841,-500.0,0.00046575,120]
[356923730,1743435040850,-500.0,0.00046575,120]
[356923731,1743435040860,-500.0,0.00046575,120]
[356923732,1743435040870,-1040.497822,0.00046575,120]
[356923733,1743435040880,-724.15,0.00046575,120]
[356923734,1743435040891,-500.0,0.00046575,120]
[356923735,1743435040902,-303.72201746,0.00046575,120]
[356923736,1743435040912,-553.843683,0.00046575,120]
[356923737,1743435040923,-500.0,0.00046575,120]
[356923738,1743435040934,-500.0,0.00046575,120]
[356923739,1743435040944,-500.0,0.00046575,120]
[356923740,1743435040955,-573.06,0.00046575,120]
[356923741,1743435040965,-550.84480444,0.00046575,120]
[356923742,1743435040976,-500.0,0.00046575,120]
[356923743,1743435040987,-500.0,0.00046575,120]
[356923744,1743435040997,-504.43188514,0.00046575,120]
[356923745,1743435041007,-500.0,0.00046575,120]
[356923746,1743435041017,-453.02111376,0.00046575,120]
[356923747,1743435041027,-198.23829728,0.00046575,120]
[356923748,1743435041037,-505.264803,0.00046575,120]
[356923749,1743435041047,-500.0,0.00046575,120]
[356923750,1743435041057,-500.0,0.00046575,120]
[356923751,1743435041068,-500.0,0.00046575,120]
[356923752,1743435041077,-500.0,0.00046575,120]
[356923753,1743435041087,-649.56279563,0.00046575,120]
[356923754,1743435041097,-500.0,0.00046575,120]
[356923755,1743435041107,-500.0,0.00046575,2]
[356923756,1743435041117,-500.0,0.00046575,120]
[356923757,1743435041127,-500.0,0.00046575,120]
[356923758,1743435041136,-500.0,0.00046575,2]
[356923759,1743435041150,-500.0,0.00046575,120]
[356923760,1743435041159,-502.11543959,0.00046575,120]
[356923761,1743435041169,-1130.97,0.00046575,120]
[356923762,1743435041179,-500.0,0.00046575,120]
[356923763,1743435041188,-545.29,0.00046575,120]
[356923764,1743435041198,-150.0,0.00046657,2]
[356923765,1743435041210,-500.0,0.00046849,120]
[356923766,1743435041220,-524.1,0.00046849,120]
[356923767,1743435041231,-500.0,0.00046849,120]
[356923768,1743435041241,-500.0,0.00046849,120]
[356923769,1743435041252,-500.0,0.00046849,120]
[356923770,1743435041264,-500.0,0.00046849,120]
[356923771,1743435041396,-1197.78,0.00046849,120]
[356923772,1743435041407,-500.0,0.00046849,120]
[356923773,1743435041419,-500.0,0.00046849,120]
[356923774,1743435041429,-500.0,0.00046849,120]
[356923775,1743435041439,-500.0,0.00046849,120]
[356923776,1743435041448,-624.71,0.00046849,120]
[356923777,1743435041459,-500.0,0.00046849,120]
[356923778,1743435041469,-500.0,0.00046849,120]
[356923779,1743435041479,-500.0,0.00046849,120]
[356923780,1743435041489,-500.0,0.00046849,120]
[356923781,1743435041499,-1078.91,0.00046849,120]
[356923782,1743435041509,-500.0,0.00046849,120]
[356923783,1743435041518,-1135.55,0.00046849,120]
[356923784,1743435041529,-500.0,0.00046849,120]
[356923785,1743435041539,-571.78,0.00046849,120]
[356923786,1743435041548,-1494.51,0.00046849,120]
[356923787,1743435041559,-500.0,0.00046849,120]
[356923788,1743435041569,-500.0,0.00046849,120]
[356923789,1743435041579,-500.0,0.00046849,120]
[356923790,1743435041589,-500.0,0.00046849,120]
[356923791,1743435041601,-1040.497822,0.00046849,120]
[356923792,1743435041611,-724.15,0.00046849,120]
[356923793,1743435041621,-500.0,0.00046849,120]
[356923794,1743435041631,-500.0,0.00046849,120]
[356923795,1743435041641,-500.0,0.00046849,120]
[356923796,1743435041650,-500.0,0.00046849,120]
[356923797,1743435041660,-573.06,0.00046849,120]
[356923798,1743435041670,-500.0,0.00046849,120]
[356923799,1743435041680,-500.0,0.00046849,120]
[356923800,1743435041690,-500.0,0.00046849,120]
[356923801,1743435041700,-500.0,0.00046849,120]
[356923802,1743435041709,-500.0,0.00046849,120]
[356923803,1743435041719,-500.0,0.00046849,120]
[356923804,1743435041728,-500.0,0.00046849,120]
[356923805,1743435041737,-500.0,0.00046849,120]
[356923806,1743435041748,-500.0,0.00046849,2]
[356923807,1743435041759,-500.0,0.00046849,120]
[356923808,1743435041768,-500.0,0.00046849,120]
[356923809,1743435041778,-500.0,0.00046849,2]
[356923810,1743435041788,-500.0,0.00046849,120]
[356923811,1743435041801,-1130.97,0.00046849,120]
[356923812,1743435041812,-500.0,0.00046849,120]
[356923813,1743435041822,-545.29,0.00046849,120]
[356923814,1743435041832,-240.37594124,0.00047082,120]
[356923815,1743435041841,-500.0,0.00047123,120]
[356923816,1743435041851,-524.1,0.00047123,120]
[356923817,1743435041860,-500.0,0.00047123,120]
[356923818,1743435041870,-500.0,0.00047123,120]
[356923819,1743435041880,-500.0,0.00047123,120]
[356923820,1743435041890,-500.0,0.00047123,120]
[356923821,1743435041900,-1197.78,0.00047123,120]
[356923822,1743435041911,-500.0,0.00047123,120]
[356923823,1743435041921,-500.0,0.00047123,120]
[356923824,1743435041932,-500.0,0.00047123,120]
[356923825,1743435041942,-500.0,0.00047123,120]
[356923826,1743435041952,-624.71,0.00047123,120]
[356923827,1743435041963,-588.62874791,0.00047123,120]
[356923828,1743435041973,-426.72965494,0.00047123,120]
[356923829,1743435041982,-500.0,0.00047123,120]
[356923830,1743435041992,-500.0,0.00047123,120]
[356923831,1743435042002,-1078.91,0.00047123,120]
[356923832,1743435042013,-500.0,0.00047123,120]
[356923833,1743435042023,-1135.55,0.00047123,120]
[356923834,1743435042033,-500.0,0.00047123,120]
[356923835,1743435042043,-571.78,0.00047123,120]
[356923836,1743435042053,-1494.51,0.00047123,120]
[356923837,1743435042063,-500.0,0.00047123,120]
[356923838,1743435042073,-500.0,0.00047123,120]
[356923839,1743435042084,-500.0,0.00047123,120]
[356923840,1743435042094,-500.0,0.00047123,120]
[356923841,1743435042104,-1040.497822,0.00047123,120]
[356923842,1743435042114,-724.15,0.00047123,120]
[356923843,1743435042124,-500.0,0.00047123,120]
[356923844,1743435042135,-500.0,0.00047123,120]
[356923845,1743435042145,-407.29039042,0.00047123,120]
[356923846,1743435042155,-500.0,0.00047123,120]
[356923847,1743435042167,-573.06,0.00047123,120]
[356923848,1743435042178,-500.0,0.00047123,120]
[356923849,1743435042187,-500.0,0.00047123,120]
[356923850,1743435042197,-500.0,0.00047123,120]
[356923851,1743435042207,-500.0,0.00047123,120]
[356923852,1743435042217,-500.0,0.00047123,120]
[356923853,1743435042226,-451.98701827,0.00047123,120]
[356923854,1743435042237,-500.0,0.00047123,120]
[356923855,1743435042247,-500.0,0.00047123,120]
[356923856,1743435042257,-500.0,0.00047123,120]
[356923857,1743435042270,-500.0,0.00047123,2]
[356923858,1743435042280,-500.0,0.00047123,120]
[356923859,1743435042290,-500.0,0.00047123,2]
[356923860,1743435042300,-500.0,0.00047123,120]
[356923861,1743435042310,-1130.97,0.00047123,120]
[356923862,1743435042320,-500.0,0.00047123,120]
[356923863,1743435042330,-545.29,0.00047123,120]
[356923864,1743435042341,-512.54,0.00047168,120]
[356923865,1743435042350,-151.0,0.00047292,2]
[356923866,1743435042360,-500.0,0.00047397,120]
[356923868,1743435042370,-524.1,0.00047397,120]
[356923870,1743435042379,-500.0,0.00047397,120]
[356923871,1743435042389,-500.0,0.00047397,120]
[356923872,1743435042400,-500.0,0.00047397,120]
[356923873,1743435042409,-500.0,0.00047397,120]
[356923874,1743435042420,-1197.78,0.00047397,120]
[356923875,1743435042434,-500.0,0.00047397,120]
[356923876,1743435042443,-357.86410881,0.00047397,120]
[356923877,1743435042453,-500.0,0.00047397,120]
[356923878,1743435042463,-500.0,0.00047397,120]
[356923879,1743435042473,-624.71,0.00047397,120]
[356923880,1743435042488,-500.0,0.00047397,120]
[356923881,1743435042498,-500.0,0.00047397,120]
[356923882,1743435042509,-1078.91,0.00047397,120]
[356923883,1743435042519,-500.0,0.00047397,120]
[356923884,1743435042529,-1135.55,0.00047397,120]
[356923885,1743435042539,-500.0,0.00047397,120]
[356923888,1743435042549,-571.78,0.00047397,120]
[356923891,1743435042559,-1494.51,0.00047397,120]
[356923893,1743435042569,-500.0,0.00047397,120]
[356923894,1743435042579,-574.65202233,0.00047397,120]
[356923895,1743435042589,-500.0,0.00047397,120]
[356923896,1743435042599,-500.0,0.00047397,120]
[356923897,1743435042610,-1040.497822,0.00047397,120]
[356923898,1743435042619,-724.15,0.00047397,120]
[356923899,1743435042629,-500.0,0.00047397,120]
[356923900,1743435042639,-500.0,0.00047397,120]
[356923901,1743435042650,-500.0,0.00047397,120]
[356923902,1743435042660,-573.06,0.00047397,120]
[356923903,1743435042669,-500.0,0.00047397,120]
[356923904,1743435042679,-500.0,0.00047397,120]
[356923905,1743435042689,-500.0,0.00047397,120]
[356923906,1743435042699,-500.0,0.00047397,120]
[356923907,1743435042709,-500.0,0.00047397,120]
[356923908,1743435042719,-500.0,0.00047397,120]
[356923909,1743435042730,-500.0,0.00047397,2]
[356923910,1743435042740,-500.0,0.00047397,120]
[356923911,1743435042750,-500.0,0.00047397,120]
[356923912,1743435042760,-500.0,0.00047397,2]
[356923913,1743435042770,-500.0,0.00047397,120]
[356923914,1743435042780,-1130.97,0.00047397,120]
[356923915,1743435042789,-500.0,0.00047397,120]
[356923916,1743435042799,-545.29,0.00047397,120]
[356923917,1743435042809,-150.33,0.00047435,2]
[356923918,1743435042819,-5574.45279034,0.00047489,15]
[356923919,1743435042829,-1397.51825894,0.00047652,2]
[356923920,1743435042839,-754.449,0.00047662,81]
[356923921,1743435042849,-520.09,0.00047662,2]
[356923922,1743435042859,-500.0,0.00047671,120]
[356923923,1743435042869,-524.1,0.00047671,120]
[356923924,1743435042879,-500.0,0.00047671,120]
[356923925,1743435042890,-500.0,0.00047671,120]
[356923926,1743435042900,-500.0,0.00047671,120]
[356923927,1743435042910,-500.0,0.00047671,120]
[356923928,1743435042920,-1197.78,0.00047671,120]
[356923929,1743435042931,-582.32600504,0.00047671,120]
[356923931,1743435042943,-500.0,0.00047671,120]
[356923933,1743435042953,-500.0,0.00047671,120]
[356923935,1743435042963,-624.71,0.00047671,120]
[356923936,1743435042972,-500.0,0.00047671,120]
[356923938,1743435042982,-500.0,0.00047671,120]
[356923940,1743435042991,-1078.91,0.00047671,120]
[356923942,1743435043001,-500.0,0.00047671,120]
[356923944,1743435043012,-1135.55,0.00047671,120]
[356923946,1743435043021,-500.0,0.00047671,120]
[356923948,1743435043031,-571.78,0.00047671,120]
[356923950,1743435043041,-1494.51,0.00047671,120]
[356923952,1743435043052,-500.0,0.00047671,120]
[356923953,1743435043062,-500.0,0.00047671,120]
[356923954,1743435043073,-500.0,0.00047671,120]
[356923955,1743435043084,-1040.497822,0.00047671,120]
[356923956,1743435043093,-724.15,0.00047671,120]
[356923957,1743435043103,-500.0,0.00047671,120]
[356923958,1743435043114,-500.0,0.00047671,120]
[356923960,1743435043124,-573.06,0.00047671,120]
[356923963,1743435043134,-500.0,0.00047671,120]
[356923966,1743435043145,-500.0,0.00047671,120]
[356923969,1743435043155,-500.0,0.00047671,120]
[356923972,1743435043166,-500.0,0.00047671,120]
[356923975,1743435043177,-500.0,0.00047671,120]
[356923976,1743435043188,-500.0,0.00047671,120]
[356923977,1743435043198,-362.39720781,0.00047671,120]
[356923979,1743435043208,-500.0,0.00047671,2]
[356923981,1743435043218,-500.0,0.00047671,120]
[356923983,1743435043228,-500.0,0.00047671,2]
[356923985,1743435043238,-500.0,0.00047671,120]
[356923987,1743435043248,-1130.97,0.00047671,120]
[356923995,1743435043338,-500.0,0.00047671,120]
[356923996,1743435043357,-500.0,0.00047844,120]
[356923997,1743435043367,-500.0,0.00047844,120]
[356923998,1743435043377,-500.0,0.00047844,120]
[356923999,1743435043387,-500.0,0.00047844,120]
[356924000,1743435043398,-1026.8,0.00047844,120]
[356924001,1743435043408,-500.0,0.00047844,120]
[356924002,1743435043420,-500.0,0.00047844,120]
[356924003,1743435043431,-511.98634262,0.00047844,120]
[356924004,1743435043441,-500.0,0.00047844,120]
[356924005,1743435043451,-500.0,0.00047844,120]
[356924006,1743435043462,-166.02929848,0.00047844,120]
[356924007,1743435043471,-500.0,0.00047844,120]
[356924008,1743435043481,-547.32082053,0.00047844,120]
[356924009,1743435043491,-500.0,0.00047844,120]
[356924010,1743435043503,-500.0,0.00047844,120]
[356924011,1743435043514,-500.0,0.00047844,120]
[356924012,1743435043524,-500.0,0.00047844,120]
[356924013,1743435043534,-500.0,0.00047844,120]
[356924014,1743435043544,-540.22277142,0.0004788,100]
[356924015,1743435043554,-500.0,0.00047943,120]
[356924016,1743435043563,-1026.8,0.00047943,120]
[356924017,1743435043573,-500.0,0.00047943,120]
[356924018,1743435043583,-500.0,0.00047943,120]
[356924019,1743435043592,-500.0,0.00047943,120]
[356924020,1743435043602,-500.0,0.00047943,120]
[356924021,1743435043612,-500.0,0.00047943,120]
[356924022,1743435043622,-500.0,0.00047943,120]
[356924023,1743435043632,-500.0,0.00047943,120]
[356924024,1743435043641,-500.0,0.00047943,120]
[356924025,1743435043652,-500.0,0.00047943,120]
[356924026,1743435043661,-320.04773198,0.00047943,120]
[356924027,1743435043672,-500.0,0.00047943,120]
[356924028,1743435043681,-500.0,0.00047943,120]
[356924029,1743435043691,-214.00493322,0.00047943,120]
[356924030,1743435043702,-500.0,0.00047943,120]
[356924031,1743435043714,-504.28013354,0.00047943,120]
[356924032,1743435043723,-500.0,0.00047943,120]
[356924033,1743435043733,-500.0,0.00047943,120]
[356924034,1743435043743,-500.0,0.00047943,120]
[356924035,1743435043752,-500.0,0.00047943,120]
[356924036,1743435043763,-500.0,0.00047943,120]
[356924037,1743435043773,-503.90880052,0.00047943,120]
[356924038,1743435043783,-500.0,0.00047943,120]
[356924039,1743435043792,-218.83476959,0.00047943,120]
[356924040,1743435043801,-500.0,0.00047943,120]
[356924041,1743435043811,-500.0,0.00047943,120]
[356924042,1743435043820,-500.0,0.00047943,120]
[356924043,1743435043829,-500.0,0.00047943,120]
[356924044,1743435043839,-500.0,0.00047943,120]
[356924045,1743435043848,-500.0,0.00047943,120]
[356924046,1743435043858,-500.0,0.00047943,120]
[356924047,1743435043867,-500.0,0.00047943,120]
[356924048,1743435043877,-500.0,0.00047943,120]
[356924049,1743435043887,-608.09757082,0.00047943,120]
[356924050,1743435043896,-500.0,0.00047943,120]
[356924051,1743435043906,-275.97334401,0.00047943,120]
[356924052,1743435043915,-510.88172709,0.00047943,120]
[356924053,1743435043924,-520.35531114,0.00047943,120]
[356924054,1743435043934,-500.0,0.00047943,30]
[356924055,1743435043943,-500.0,0.00047943,120]
[356924056,1743435043952,-500.0,0.00047943,120]
[356924057,1743435043962,-500.0,0.00047943,120]
[356924058,1743435043971,-500.0,0.00047943,120]
[356924059,1743435043981,-500.0,0.00047943,120]
[356924060,1743435043990,-500.0,0.00047943,120]
[356924061,1743435044000,-539.26800147,0.00047943,120]
[356924062,1743435044011,-500.0,0.00047943,120]
[356924063,1743435044020,-500.0,0.00047943,120]
[356924064,1743435044030,-500.0,0.00047943,120]
[356924065,1743435044039,-428.1791229,0.00047943,120]
[356924066,1743435044049,-500.0,0.00047943,120]
[356924067,1743435044059,-614.90147282,0.00047943,120]
[356924068,1743435044069,-500.0,0.00047943,120]
[356924069,1743435044078,-500.0,0.00047943,120]
[356924070,1743435044088,-500.0,0.00047943,120]
[356924071,1743435044098,-500.0,0.00047943,120]
[356924072,1743435044107,-500.0,0.00047943,120]
[356924073,1743435044117,-500.0,0.00047943,120]
[356924074,1743435044127,-500.0,0.00047943,120]
[356924075,1743435044136,-500.0,0.00047943,120]
[356924076,1743435044146,-500.0,0.00047943,120]
[356924077,1743435044155,-500.0,0.00047943,120]
[356924078,1743435044165,-500.0,0.00047943,120]
[356924079,1743435044175,-500.0,0.00047943,120]
[356924080,1743435044185,-321.80905337,0.00047943,120]
[356924081,1743435044195,-500.0,0.00047943,120]
[356924082,1743435044205,-500.0,0.00047943,120]
[356924083,1743435044214,-500.0,0.00047943,120]
[356924084,1743435044223,-500.0,0.00047943,120]
[356924085,1743435044233,-500.0,0.00047943,120]
[356924086,1743435044242,-500.0,0.00047943,120]
[356924087,1743435044252,-500.0,0.00047943,120]
[356924088,1743435044263,-524.2438909,0.00047943,120]
[356924089,1743435044273,-500.0,0.00047943,120]
[356924090,1743435044282,-500.0,0.00047943,120]
[356924091,1743435044291,-500.0,0.00047943,120]
[356924092,1743435044301,-500.0,0.00047943,120]
[356924093,1743435044311,-500.0,0.00047943,120]
[356924094,1743435044321,-698.6,0.00047943,120]
[356924095,1743435044331,-500.0,0.00047943,120]
[356924096,1743435044340,-750.0,0.00047943,120]
[356924097,1743435044350,-500.0,0.00047943,120]
[356924098,1743435044359,-500.0,0.00047943,120]
[356924099,1743435044369,-500.0,0.00047943,120]
[356924100,1743435044380,-500.0,0.00047943,120]
[356924101,1743435044389,-500.0,0.00047943,120]
[356924102,1743435044398,-500.0,0.00047943,120]
[356924103,1743435044407,-500.0,0.00047943,120]
[356924104,1743435044419,-500.0,0.00047943,120]
[356924105,1743435044429,-500.0,0.00047943,120]
[356924106,1743435044438,-500.0,0.00047943,120]
[356924107,1743435044448,-500.0,0.00047943,120]
[356924108,1743435044457,-500.0,0.00047943,120]
[356924109,1743435044469,-500.0,0.00047943,120]
[356924110,1743435044479,-500.0,0.00047943,120]
[356924111,1743435044489,-500.0,0.00047943,120]
[356924112,1743435044499,-500.0,0.00047943,120]
[356924113,1743435044510,-500.0,0.00047943,120]
[356924114,1743435044519,-500.0,0.00047943,120]
[356924115,1743435044528,-884.13,0.00047943,120]
[356924116,1743435044538,-500.0,0.00047943,120]
[356924117,1743435044549,-500.0,0.00047943,120]
[356924118,1743435044558,-709.47,0.00047943,120]
[356924119,1743435044568,-500.0,0.00047943,120]
[356924120,1743435044578,-500.0,0.00047943,120]
[356924121,1743435044587,-575.2,0.00047943,120]
[356924122,1743435044597,-500.0,0.00047943,120]
[356924123,1743435044606,-500.0,0.00047943,120]
[356924124,1743435044615,-500.0,0.00047943,120]
[356924125,1743435044625,-500.0,0.00047943,120]
[356924126,1743435044634,-500.0,0.00047943,120]
[356924127,1743435044644,-657.12,0.00047943,120]
[356924128,1743435044654,-500.0,0.00047943,120]
[356924129,1743435044663,-500.0,0.00047943,120]
[356924130,1743435044673,-1709.56,0.00047943,120]
[356924131,1743435044683,-966.72,0.00047943,120]
[356924132,1743435044692,-500.0,0.00047943,30]
[356924133,1743435044703,-674.91,0.00047943,120]
[356924134,1743435044712,-500.0,0.00047943,120]
[356924135,1743435044722,-500.0,0.00047943,120]
[356924136,1743435044731,-500.0,0.00047943,120]
[356924137,1743435044741,-500.0,0.00047943,120]
[356924138,1743435044751,-500.0,0.00047943,120]
[356924139,1743435044760,-679.34,0.00047943,120]
[356924140,1743435044770,-500.0,0.00047943,120]
[356924141,1743435044780,-500.0,0.00047943,120]
[356924142,1743435044789,-500.0,0.00047943,120]
[356924143,1743435044799,-500.0,0.00047943,120]
[356924144,1743435044809,-500.0,0.00047943,120]
[356924145,1743435044818,-500.0,0.00047943,120]
[356924146,1743435044828,-589.96,0.00047943,120]
[356924147,1743435044837,-500.0,0.00047943,120]
[356924148,1743435044847,-500.0,0.00047943,120]
[356924149,1743435044856,-500.0,0.00047943,120]
[356924150,1743435044866,-500.0,0.00047943,120]
[356924151,1743435044875,-553.96,0.00047943,120]
[356924152,1743435044885,-500.0,0.00047943,120]
[356924153,1743435044894,-500.0,0.00047943,120]
[356924154,1743435044904,-500.0,0.00047943,120]
[356924155,1743435044914,-500.0,0.00047943,120]
[356924156,1743435044924,-1077.21,0.00047943,120]
[356924157,1743435044934,-982.57,0.00047943,120]
[356924158,1743435044943,-500.0,0.00047943,120]
[356924159,1743435044953,-500.0,0.00047943,120]
[356924160,1743435044963,-500.0,0.00047943,120]
[356924161,1743435044973,-500.0,0.00047943,120]
[356924162,1743435044982,-1735.57,0.00047943,100]
[356924163,1743435044992,-500.0,0.00047943,120]
[356924164,1743435045080,-500.0,0.00047943,120]
[356924165,1743435045101,-500.0,0.00047943,120]
[356924166,1743435045111,-500.0,0.00047943,120]